Cogmind - Beta 14 @@@ ROGUE MODE // 2024.10.29 @ 04:10:41 Player: hanna Result: Destroyed by G-47 Trooper with Particle Gun Performance ------------- Evolutions (2) 1000 Regions Visited (4) 800 Robots Destroyed (44) 220 Value Destroyed (1157) 1157 Prototype IDs (3) 60 Alien Tech Used (0) 0 Bonus (178) 178 TOTAL SCORE: 3415 Bonus ------- High Alert Combat Kills 53 Follower Combat Kills 125 Cogmind --------- Core Integrity 0/550 Matter 251/300 Energy 100/100 System Corruption 0% Temperature Cool (9) Movement Core (400) Ox7 Location -8/Materials Parts ------- > --- POWER (3) -------- (None) > --- PROPULSION (3) --- (None) > --- UTILITY (2) ------ Large Storage Unit > --- WEAPON (3) ------- Katana > --- INVENTORY (15) --- (None) Peak State ------------ > --- POWER ------------ Improved Ion Engine Heavy Ion Engine > --- PROPULSION ------- Light Treads Improved Treads > --- UTILITY ---------- Cooling System > --- WEAPON ----------- Spread Laser Advanced Beam Cannon Rocket Launcher > --- INVENTORY -------- Light Treads Small Laser [Rating: 17] Favorites ----------- Power Heavy Ion Engine Engine Heavy Ion Engine Propulsion Light Treads Treads Light Treads Leg Improved Aluminum Leg Utility Large Storage Unit Device Cooling System Storage Large Storage Unit Processor Visual Processing Unit Weapon Advanced Beam Cannon Energy Gun Small Laser Energy Cannon Advanced Beam Cannon Ballistic Gun Light Assault Rifle Launcher Mini Grenade Launcher Slashing Weapon Katana Build | -11 -10 -10 -9 -8 ------- Run | Yrd Mat Min Mat Mat Slots Evolved 4 | . . . 2 2 Power 2 | . . . 1 1 Propulsion 1 | . . . . 1 Utility . | . . . . . Weapon 1 | . . . 1 . Parts Attached 49 | 4 13 . 23 9 Power 15 | 1 4 . 9 1 Engine 15 | 1 4 . 9 1 Core . | . . . . . Reactor . | . . . . . Propulsion 13 | 2 5 . 4 2 Treads 12 | 2 5 . 3 2 Leg 1 | . . . 1 . Wheel . | . . . . . Hover . | . . . . . Flight . | . . . . . Utility 5 | . . . 3 2 Device 3 | . . . 1 2 Storage 1 | . . . 1 . Processor 1 | . . . 1 . Hackware . | . . . . . Protection . | . . . . . Artifact . | . . . . . Weapon 16 | 1 4 . 7 4 Energy Gun 2 | . . . 2 . Energy Cannon 4 | . . . 3 1 Ballistic Gun 6 | 1 4 . . 1 Ballistic Cannon . | . . . . . Launcher 3 | . . . 2 1 Special Weapon . | . . . . . Impact Weapon . | . . . . . Slashing Weapon 1 | . . . . 1 Piercing Weapon . | . . . . . Special Melee Weapon . | . . . . . Unidentified Prototypes 2 | . . . 2 . Parts Lost 24 | . . . 12 12 Power 6 | . . . 4 2 Propulsion 7 | . . . 3 4 Utility 4 | . . . 2 2 Weapon 7 | . . . 3 4 Highest Loss Streak 5 | . . . 4 5 To Critical Strikes . | . . . . . Average Slot Usage (%) 58 | . 56 71 63 49 Engine 16 | . 12 14 19 11 Treads 15 | . 24 28 15 10 Device 3 | . . . 5 2 Storage 2 | . . . . 9 Processor 2 | . . . 4 . Energy Gun 2 | . . . 2 5 Energy Cannon 4 | . . . 6 2 Ballistic Gun 6 | . 17 28 4 3 Launcher 3 | . . . 3 4 Peak Build Rating 17 | 4 5 5 17 17 Average Rating 9 | 3 3 5 10 11 On Entrance 5 | . 4 5 5 12 Naked Turns 15 | . 15 . . . Heaviest Build 44 | 5 8 8 41 44 Greatest Support 43 | 40 40 40 43 43 Greatest Overweight (x) 10 | . . . 5 10 Average Overweight (x) . | . . . . . Largest Inventory Capacity 15 | 5 5 5 15 15 Average Capacity 8 | 5 5 5 5 15 Most Carried 5 | 4 5 1 5 4 Average Carried 2 | 1 1 1 2 1 Final Capacity 15 | 5 5 5 15 15 Final Carried 3 | 1 1 1 3 . Class Distribution -------------------- 98% | Mutant Dominant Class ---------------- Mutant | -10/Materials Mutant | -10/Mines Mutant | -9/Materials Mutant | -8/Materials Resources | -11 -10 -10 -9 -8 ----------- Run | Yrd Mat Min Mat Mat Matter Collected 1018 | 224 48 . 536 210 Remotely . | . . . . . Salvage Created 1090 | . 48 . 521 521 Parts 90 | . 6 . 55 29 Haulers Intercepted . | . . . . . Recyclers Shooed 2 | . . . 2 . Parts Field Recycled . | . . . . . Retrieved Matter . | . . . . . Parts Self-Destructed . | . . . . . Prevented . | . . . . . Kills | -11 -10 -10 -9 -8 ------- Run | Yrd Mat Min Mat Mat Combat Hostiles Destroyed 29 | . 3 . 16 10 Guns 10 | . 3 . 5 2 Cannons 11 | . . . 7 4 AOE 8 | . . . 4 4 Classes Destroyed 8 | . 1 . 5 2 Worker 6 | . . . 3 3 Builder 3 | . . . . 3 Watcher 6 | . . . 5 1 Swarmer 10 | . 3 . 7 . Grunt 10 | . . . 5 5 Brawler 1 | . . . 1 . Sentry 6 | . . . 3 3 Hunter 2 | . . . . 2 Best Kill Streak 8 | . 2 . 8 4 Combat Bots Only 3 | . 2 . 3 2 Max Kills in Single Turn 3 | . 1 . 2 3 Gunslinging . | . . . . . Exploded 2 | . . . 2 1 Melee . | . . . . . Uniques/NPCs Destroyed . | . . . . . Combat | -11 -10 -10 -9 -8 -------- Run | Yrd Mat Min Mat Mat Hostile Shots Fired 289 | . 6 . 157 126 Missed 75 | . 3 . 40 32 Damage Taken 3033 | . 23 . 1351 1659 Core 963 | . 8 . 393 562 Absorbed by Shields . | . . . . . Regen/Repaired (Parts) 116 | . . . 116 . Core Remaining (%) 65 | 100 . 96 1 . Volleys Fired 129 | . 5 . 83 41 Largest 2 | . 1 . 2 2 Hottest 136 | . 20 . 136 108 Shots Fired 183 | . 5 . 119 59 Gun 102 | . 5 . 61 36 Cannon 55 | . . . 41 14 Launcher 26 | . . . 17 9 Special . | . . . . . Kinetic 68 | . 5 . 51 12 Thermal 89 | . . . 51 38 Explosive 26 | . . . 17 9 Electromagnetic . | . . . . . Robot Hit Streak 13 | . 2 . 10 13 Robot Miss Streak 9 | . 1 . 9 2 Penetration Max 1 | . . . . 1 Secondary Targets 2 | . . . 2 . Max Gunslinging Chain 1 | . . . 1 . Shots Hit Robots 124 | . 4 . 68 52 Core Hits 71 | . 3 . 36 32 Critical Kills 1 | . 1 . . . Critical Parts Destroyed 1 | . . . 1 . Critical Strikes 2 | . 1 . 1 . Destroy 2 | . 1 . 1 . Melee Attacks 5 | . . . . 5 Impact . | . . . . . Slashing 5 | . . . . 5 Piercing . | . . . . . Sneak Attacks . | . . . . . Combat Hostiles . | . . . . . Follow-up Attacks . | . . . . . Damage Inflicted 3308 | . 46 . 1717 1545 Guns 815 | . 46 . 371 398 Cannons 798 | . . . 534 264 Explosions 1550 | . . . 807 743 Melee 131 | . . . . 131 Ramming 14 | . . . 5 9 Kinetic 493 | . 46 . 273 174 Thermal 1120 | . . . 632 488 Explosive 1550 | . . . 807 743 Electromagnetic . | . . . . . Impact . | . . . . . Slashing 131 | . . . . 131 Piercing . | . . . . . Highest Corruption 4 | . . . 4 . Average Corruption 4 | . . . 4 . Corruption Purged . | . . . . . Corruption Blocked . | . . . . . Effects 9 | . . . 9 . Matter Fused 2 | . . . 2 . Heat Flow Errors 1 | . . . 1 . Energy Discharges 2 | . . . 2 . Parts Rejected 1 | . . . 1 . Data Loss (minor) 1 | . . . 1 . Data Loss (major) 1 | . . . 1 . Misfires 1 | . . . 1 . Overload Shots . | . . . . . Overflow Damage 111 | . . . 90 21 Projectiles 1 | . . . 1 . Explosions 106 | . . . 89 17 Melee 4 | . . . . 4 Knockbacks . | . . . . . Impact . | . . . . . Kinetic . | . . . . . Secondary . | . . . . . Self-Inflicted Damage 90 | . . . 47 43 Shots 5 | . . . 2 3 Rammed 2 | . . . 1 1 Targets Rammed 2 | . . . 1 1 Kicked . | . . . . . Crushed . | . . . . . Highest Temperature 558 | . . . 558 341 Average Temperature 131 | . . . 130 133 Received Heat Transfer 675 | . . . 234 441 Effects 15 | . . . 14 1 Shutdowns 2 | . . . 2 . Interference 3 | . . . 3 . Matter Decay 1 | . . . . 1 Short Circuit 1 | . . . 1 . Damage (major) 7 | . . . 7 . Damage (core) 1 | . . . 1 . Siege Activations . | . . . . . Robots Corrupted . | . . . . . Combat Hostiles . | . . . . . Parts Fried . | . . . . . Impact Corruptions . | . . . . . Robots Melted . | . . . . . Combat Hostiles . | . . . . . Parts Melted 1 | . . . 1 . Heat Transferred 2108 | . . . 1127 981 Parts Sabotaged . | . . . . . Parts Stolen . | . . . . . Parts Stripped . | . . . . . Power Chain Reactions . | . . . . . Alert | -11 -10 -10 -9 -8 ------- Run | Yrd Mat Min Mat Mat Peak Influence 559 | . 100 39 559 335 Initial 124 | . . 39 14 124 Average 264 | . 71 39 341 219 Maximum Alert Level 2 | . . . 2 1 Low Security (%) 31 | 100 100 100 12 34 Level 1 45 | . . . 46 65 Level 2 22 | . . . 40 . Level 3 . | . . . . . Level 4 . | . . . . . Level 5 . | . . . . . High Security . | . . . . . Max Security . | . . . . . Squads Dispatched 3 | . . . 1 2 Investigation . | . . . . . Extermination . | . . . . . Reinforcement 3 | . . . 1 2 Assault . | . . . . . Garrison . | . . . . . Intercept . | . . . . . Searches Triggered . | . . . . . Construction Impeded 1 | . . . . 1 Haulers Reinforced . | . . . . . Active Scanning Responses . | . . . . . Cargo Convoy Interrupts . | . . . . . Stealth | -11 -10 -10 -9 -8 --------- Run | Yrd Mat Min Mat Mat Distress Signals 5 | . . . 3 2 Communications Jammed . | . . . . . Distress Signals . | . . . . . Times Spotted 54 | . 4 . 32 18 Peak Tracking Total 6 | . 3 . 6 5 Tactical Retreats 10 | . 1 . 7 2 Traps | -11 -10 -10 -9 -8 ------- Run | Yrd Mat Min Mat Mat Traps Triggered 6 | . 5 . . 1 Indirectly . | . . . . . Trap Hack Attempts . | . . . . . Triggered . | . . . . . Disarmed . | . . . . . Reprogrammed . | . . . . . Reused . | . . . . . Traps Extracted . | . . . . . Installed . | . . . . . Triggered . | . . . . . Machines | -11 -10 -10 -9 -8 ---------- Run | Yrd Mat Min Mat Mat Machines Disabled 11 | . . . 10 1 Max in Single Turn 2 | . . . 2 1 Machines Repaired . | . . . . . Machines Dismantled . | . . . . . Machines Sabotaged . | . . . . . Overloaded Fab Kills . | . . . . . Hacking | -11 -10 -10 -9 -8 --------- Run | Yrd Mat Min Mat Mat Machines Accessed 4 | . . . 3 1 Terminals 2 | . . . 1 1 Fabricators . | . . . . . Repair Stations 1 | . . . 1 . Recycling Units 1 | . . . 1 . Scanalyzers . | . . . . . Garrison Access . | . . . . . Total Hacks 9 | . . . 8 1 Successful 5 | . . . 5 . Failed 4 | . . . 3 1 Catastrophic . | . . . . . Database Lockouts . | . . . . . Manual . | . . . . . Terminals 2 | . . . 1 1 Fabricators . | . . . . . Repair Stations 3 | . . . 3 . Recycling Units 4 | . . . 4 . Scanalyzers . | . . . . . Garrison Access . | . . . . . Terminal Hacks 1 | . . . 1 . Prototype ID Bank 1 | . . . 1 . Fabricator Hacks . | . . . . . Repair Station Hacks 2 | . . . 2 . Scan Component 1 | . . . 1 . Repair 1 | . . . 1 . Recycling Unit Hacks 2 | . . . 2 . Process 1 | . . . 1 . Retrieve Matter 1 | . . . 1 . Scanalyzer . | . . . . . Garrison Access Hacks . | . . . . . Unauthorized Hacks . | . . . . . Terminals . | . . . . . Fabricators . | . . . . . Repair Stations . | . . . . . Recycling Units . | . . . . . Scanalyzers . | . . . . . Garrison Access . | . . . . . Data Cores Recovered . | . . . . . Used . | . . . . . Hacking Detections 1 | . . . 1 . Full Trace Events . | . . . . . Feedback Events . | . . . . . Feedback Blocked . | . . . . . Robot Schematics Acquired . | . . . . . Robots Built . | . . . . . Authchips . | . . . . . Time . | . . . . . Total Robot Build Rating . | . . . . . Part Schematics Acquired . | . . . . . Parts Built . | . . . . . Authchips . | . . . . . Time . | . . . . . Total Part Build Rating . | . . . . . Parts Repaired 1 | . . . 1 . Time 51 | . . . 51 . Parts Recycled . | . . . . . Recycled Matter 199 | . . . 199 . Retrieved Matter 366 | . . . 366 . Retrieved Components . | . . . . . Parts Scanalyzed . | . . . . . Part Schematics Acquired . | . . . . . Parts Damaged . | . . . . . Bothacking | -11 -10 -10 -9 -8 ------------ Run | Yrd Mat Min Mat Mat Used RIF Installer . | . . . . . Robots Hacked . | . . . . . Non-combat . | . . . . . Combat . | . . . . . Robot Hacks Applied . | . . . . . Relay Couplers Released . | . . . . . Fabnet Peak Effective % . | . . . . . Robots Rewired . | . . . . . Allies Hacked . | . . . . . Hacks Repelled . | . . . . . Allies | -11 -10 -10 -9 -8 -------- Run | Yrd Mat Min Mat Mat Total Allies 3 | . . 3 . . Largest Group 3 | . . 3 3 . Highest-Rated Group 40 | . . 40 40 . Highest-Rated Ally 16 | . . 16 16 . Total Orders . | . . . . . Ally Attacks 26 | . . . 26 . Total Damage 239 | . . . 239 . Kills 5 | . . . 5 . Allies Corrupted . | . . . . . Allies Melted . | . . . . . Intel | -11 -10 -10 -9 -8 ------- Run | Yrd Mat Min Mat Mat Robot Analysis Total . | . . . . . Derelict Logs Recovered . | . . . . . Drone Launches . | . . . . . Drone Recoveries . | . . . . . Exploration | -11 -10 -10 -9 -8 ------------- Run | Yrd Mat Min Mat Mat Turns Passed 3013 | 56 257 131 1711 858 Spaces Moved 1462 | 36 130 80 888 328 Core 232 | 9 10 . 205 8 Treads 1209 | 27 120 80 662 320 Legs 21 | . . . 21 . Wheels . | . . . . . Hover . | . . . . . Flight . | . . . . . Fastest Speed 50 | 50 50 160 50 160 Average Speed 168 | 132 151 160 156 212 Slowest Speed 550 | 160 160 160 300 550 Overloaded Moves . | . . . . . Propulsion Burnouts . | . . . . . Robots Hopped . | . . . . . Cave-ins Triggered . | . . . . . Exploration Rate (%) 26 | 4 23 16 59 29 Regions Visited 4 Branch Regions 1 Pre-discovered Areas . | . . . . . Known Exits Taken . | . . . . . Unknown Exits Taken 4 | 1 1 1 1 . Scrap Searched . | . . . . . Spaces Dug . | . . . . . Terrain Destroyed 163 | . . . 90 73 Melee . | . . . . . Projectile 1 | . . . . 1 AOE 162 | . . . 90 72 Terrain Rammed . | . . . . . Walls Destroyed . | . . . . . Machines Disabled . | . . . . . Actions | -11 -10 -10 -9 -8 --------- Run | Yrd Mat Min Mat Mat Total 1832 | 44 188 83 1095 422 Wait 136 | . 25 4 75 32 Move 1458 | 35 129 79 887 328 Hop . | . . . . . Pick Up 46 | 5 14 . 21 6 Fast Attach . | . . . . . Attach 44 | 4 12 . 19 9 Detach 2 | . . . 2 . Swap 5 | . 1 . 4 . Drop 5 | . 2 . 3 . Fire 129 | . 5 . 83 41 Melee 5 | . . . . 5 Ram . | . . . . . Kick . | . . . . . Crush 2 | . . . 1 1 Escape Stasis . | . . . . . Rewire . | . . . . . Trap . | . . . . . Miscellaneous . | . . . . . Route ------- -11/Scrapyard -10/Materials -10/Mines -9/Materials -8/Materials History --------- Turn | Location | Event 5 | -11/Scrapyard | Discovered new exit (range 15) 57 | -11/Scrapyard | Entered Materials 269 | -10/Materials | Discovered new exit (range 11) 314 | -10/Materials | Entered Mines 318 | -10/Mines | Build established: Mutant 319 | -10/Mines | Discovered new exit (range 15) 351 | -10/Mines | Assisted by bots powering up and referring to "LRC-V3" 445 | -10/Mines | Entered Materials 445 | -9/Materials | Accompanied by 3 allies 445 | -9/Materials | Evolved 2 slots: Power x1, Weapon x1 921 | -9/Materials | Lost 4 parts (2p1n1w) 1201 | -9/Materials | Core integrity fell below 50% 1225 | -9/Materials | Core integrity fell below 20% 1237 | -9/Materials | Lost 3 parts (1p1n1w) 1341 | -9/Materials | Repaired Adv. Beam Cannon 2153 | -9/Materials | Discovered new exit (range 3) 2156 | -9/Materials | Entered another Materials area 2156 | -8/Materials | Evolved 2 slots: Power x1, Propulsion x1 2556 | -8/Materials | Lost 5 parts (1p1n1u2w) 2957 | -8/Materials | Core integrity fell below 50% 2986 | -8/Materials | Lost 3 parts (1p1u1w) 3004 | -8/Materials | Core integrity fell below 20% 3014 | -8/Materials | Destroyed by G-47 Trooper with Particle Gun Last Messages --------------- U-05 Engineer builds a Wall. Slug penetrates R-06 Scavenger. R-06 Scavenger destroyed. Slug penetrates Wall. Slug penetrates Y-45 Defender. Hvy. Ion Engine destroyed. Recoil Stabilizer destroyed. Knocked back. Acquired 6 matter. Critical hit (Burn: +37). M-13 Machinist repairs Y-45 Defender. Gauss Rifle destroyed. Penetrated by Slug. Acquired 8 matter. U-05 Engineer builds a Wall. Slammed into A-02 Transporter. Lgt. Treads destroyed. Acquired Katana. Knocked back. Destroyed Imp. Aluminum Leg. Map ----- +----------------------------------------------------+ | ????????????????????????????????????? ???????????? | | ############????????????????????????? ???????????? | | #????????????????????????? ???????????? | | "" #????????????????????????? ?#########?? | | Y" #????????????????????????? ?# #?# | | """ "" #????????????????????????? ?# ### | | """ #????????????????????????# ## # # | | """ #????????????????????????# ## | | ! #????????????????????????# ######+## | | ### "+######????????????????????????# #??# | | % #########????????????????????# #??# # | | ## " %# #????????????????????# #??# + | | " # """"" #?????????########???# #??# # | | ####% + """"" #?????????# T #???# #??# # | | ??## # """"" #?????????# #???# #??### ### | | ??#" %" #?????????# """ #???# #????# #?# | | ??## ###+#####?????????# """ #???# #????# #?## | | ???# %# #??????????# """ #???# #????# #??## | | ???# # #??????????# #??## ##???# #???# | | ???# # """ #############+##+#####! ##### #???# | | ???# " """ + / #???# | | ???# # """ ####### ######## ## #???# | | ???# # #?????# H!/ #????####+### #???# | | ???# ########?????# g!!/ #????# T # #???# | | ???# ############## l #????# # #???# | | ???# # ] #% % @ ###### """ # ##### | | ???# # " """"" + + """ # | | ???# + """"""""" #######+###### """ ####+##### | | ???# # """ """ #???? ???# #??# ! #? | | #??# # #???# #?########??# #? | | #### #####+########???# = !#???????????# #? | | #?????????# #???????????# #? | | #?????????# "Y" #???????????# #? | | #?????????# """ #???????????# #? | | #####"##### #?????????########???????????# #? | | #?? ??# #????????????????????????????# #? | | ?# """ # #????????????????????????????# #? | | ?# """ ! # #????????????????????????????######? | | ?# """ # #??????????????????????????????????? | | ?# # #??????????????????????????????????? | | ?#"" # #??????????????????????????????????? | | #??T # #??????????????????????????????????? | | #??" ! # #??????????????????????????????????? | | #??? # #??????????????????????????????????? | | #?????##### #??????????????????????????????????? | | #?????????? #??????????????????????????????????? | | #?????????? ???????????????????????????????????? | | #????????????????????????????????????????????????? | | ?????????????????????????????????????????????????? | | ?????????????????????????????????????????????????? | +----------------------------------------------------+ Best States ------------- Heat Dissipation 50 Energy Generation 21 Energy Capacity 445 Matter Stores 300 Matter Capacity 300 Sight Range 18 Robot Scan Range 15 Terrain Scan Density 10 Evasion (%) 50 Recoil Reduction 4 Item Schematics ----------------- None Robot Schematics ------------------ None Fabricated ------------ Nothing Alien Tech Used ----------------- None Achievements -------------- Maybe Next Time I'll Detach My Launcher Challenges ------------ None Game ------ Seed HackingAblativeLaser Manual? 0 Play Time 00:28:06 Cumulative 20.4 hours Start 2024.10.29 @ 03:41:19 End 2024.10.29 @ 04:10:41 Sessions 1 Manual Loads 0 Difficulty Rogue Special Mode None Game No. 35 Rogue 35 Adventurer 0 Explorer 0 Win Type - Total 0 Types 0/0/0/0/0/0/0/0/0 Lore% 11 Gallery% 21 Achievement% 19 Wizard Run 0 Options --------- Layout 1 ASCII 0 Keyboard 0 Movement Mouse Keybinds 0 Fullscreen 1 Font 24/Terminus Map View 50x35 Zoom Use 0% Tactical HUD 0 Map Filters NONE Filters NONE Steam 1 RUN: 156942ed-de3c-4fca-8a9b-dae685a0a791